bitfinex-derivatives/quotes_BNBF0:USTF0_20250904
["timestamp","ask_amount","ask_price","bid_price","bid_amount"]
[1756956218514,0.20433447,851.92,851.46,1.2898794]
[1756956218717,0.20433447,851.92,851.47,1.2898794]
[1756956218917,0.20433447,851.92,851.48,1.2898794]
[1756956219217,0.20433447,851.92,851.49,1.2898794]
[1756956219417,0.20433447,851.92,851.5,1.2898794]
[1756956219617,0.20433447,851.92,851.51,1.2898794]
[1756956219817,0.20433447,851.92,851.52,1.2898794]
[1756956220018,0.20433447,851.92,851.53,1.2898794]
[1756956220215,0.20433447,851.92,851.54,1.2898794]
[1756956220413,0.20433447,851.92,851.55,1.2898794]
[1756956220616,0.20433447,851.92,851.56,1.2898794]
[1756956220820,0.20433447,851.92,851.57,1.2898794]
[1756956221021,0.20433447,851.92,851.58,1.2898794]
[1756956221218,0.20433447,851.92,851.59,1.2898794]
[1756956221417,0.20433447,851.92,851.6,1.2898794]
[1756956221722,0.20433447,851.92,851.61,1.2898794]
[1756956221921,0.20433447,851.92,851.62,1.2898794]
[1756956222118,0.20433447,851.92,851.63,0.58727894]
[1756956222322,0.20433447,851.92,851.64,0.58727894]
[1756956222518,0.20433447,851.92,851.65,0.58727894]
[1756956222818,0.20433447,851.92,851.66,0.58727894]
[1756956223118,0.20433447,851.92,851.67,0.58727894]
[1756956223320,0.20433447,851.92,851.68,0.58727894]
[1756956223519,0.20433447,851.92,851.69,0.58727894]
[1756956223723,0.20433447,851.92,851.7,0.58727894]
[1756956223920,0.20433447,851.92,851.71,0.58727894]
[1756956224119,0.20433447,851.92,851.72,0.58727894]
[1756956224323,0.20433447,851.92,851.73,0.58727894]
[1756956224524,0.20433447,851.92,851.74,0.58727894]
[1756956224722,0.20433447,851.92,851.75,0.58727894]
[1756956225020,0.20433447,851.92,851.76,0.58727894]
[1756956225221,0.20433447,851.92,851.77,0.58727894]
[1756956225425,0.20433447,851.92,851.78,0.58727894]
[1756956225621,0.20433447,851.92,851.79,0.58727894]
[1756956225821,0.20433447,851.92,851.8,0.58727894]
[1756956226125,0.20433447,851.92,851.27,0.79014047]
[1756956226325,0.20433447,851.92,851.28,1.28957414]
[1756956226525,0.20433447,851.92,851.29,1.28957414]
[1756956226724,0.20433447,851.92,851.3,1.28957414]
[1756956227027,0.20433447,851.92,851.31,1.28957414]
[1756956227326,0.20433447,851.92,851.32,1.28957414]
[1756956227527,0.20433447,851.92,851.33,1.28957414]
[1756956227727,0.20433447,851.92,851.34,1.28957414]
[1756956228027,0.20433447,851.92,851.35,1.28957414]
[1756956228224,0.20433447,851.92,851.36,1.28957414]
[1756956228422,0.20433447,851.92,851.37,1.28957414]
[1756956228628,0.20433447,851.92,851.38,1.28957414]
[1756956228926,0.20433447,851.92,851.39,1.28957414]
[1756956229131,0.20433447,851.92,851.4,1.28957414]
[1756956229331,0.20433447,851.92,851.41,1.28957414]
[1756956229628,0.20433447,851.92,851.42,1.28957414]
[1756956229831,0.20433447,851.92,851.43,1.28957414]
[1756956230026,0.20433447,851.92,851.44,1.28957414]
[1756956230229,0.20433447,851.92,851.45,1.28957414]
[1756956230430,0.20433447,851.92,851.46,1.28957414]
[1756956230730,0.20433447,851.92,851.47,1.28957414]
[1756956230929,0.20433447,851.92,851.48,1.28957414]
[1756956231226,0.20433447,851.92,851.49,1.28957414]
[1756956231430,0.20433447,851.92,851.5,1.28957414]
[1756956231626,0.20433447,851.92,851.51,1.28957414]
[1756956231831,0.20433447,851.92,851.52,1.28957414]
[1756956232031,0.20433447,851.92,851.53,1.28957414]
[1756956232231,0.20433447,851.92,851.54,1.28957414]
[1756956232532,0.20433447,851.92,851.55,1.28957414]
[1756956232829,0.20433447,851.92,851.56,1.28957414]
[1756956233030,0.20433447,851.92,851.57,1.28957414]
[1756956233227,0.20433447,851.92,851.58,1.28957414]
[1756956233530,0.20433447,851.92,851.59,1.28957414]
[1756956233732,0.20433447,851.92,851.6,1.28957414]
[1756956234027,0.20433447,851.92,851.61,1.28957414]
[1756956234232,0.20433447,851.92,851.36,0.79014047]
[1756956234233,0.20433447,851.92,851.62,1.28957414]
[1756956234432,0.20433447,851.92,851.63,1.28957414]
[1756956234729,0.20433447,851.92,851.64,1.28957414]
[1756956235030,0.20433447,851.92,851.65,1.28957414]
[1756956235232,0.20433447,851.92,851.66,1.28957414]
[1756956235429,0.20433447,851.92,851.67,1.28957414]
[1756956235633,0.20433447,851.92,851.68,1.28957414]
[1756956235933,0.20433447,851.92,851.69,1.28957414]
[1756956236230,0.20433447,851.92,851.7,1.28957414]
[1756956236431,0.20433447,851.92,851.71,0.58722187]
[1756956236733,0.20433447,851.92,851.72,0.58722187]
[1756956237033,0.20433447,851.92,851.73,0.58722187]
[1756956237330,0.20433447,851.92,851.74,0.58722187]
[1756956237533,0.20433447,851.92,851.75,0.58722187]
[1756956237731,0.20433447,851.92,851.76,0.58722187]
[1756956237931,0.20433447,851.92,851.77,0.58722187]
[1756956238129,0.20433447,851.92,851.78,0.58722187]
[1756956238331,0.20433447,851.92,851.79,0.58722187]
[1756956238530,0.20433447,851.92,851.8,0.58722187]
[1756956238733,0.20433447,851.92,851.81,0.58722187]
[1756956238935,0.20433447,851.92,851.82,0.58722187]
[1756956239233,0.20433447,851.92,851.83,0.58722187]
[1756956239535,0.20433447,851.92,851.84,0.58722187]
[1756956239733,0.20433447,851.92,851.85,0.58722187]
[1756956239938,0.20433447,851.92,851.86,0.58722187]
[1756956240138,0.20433447,851.92,851.87,0.58722187]
[1756956240438,0.20433447,851.92,851.88,0.58722187]
[1756956240734,0.20433447,851.92,851.89,0.58722187]
[1756956240939,0.20433447,851.92,851.9,0.58722187]
[1756956241238,0.20433447,851.92,851.91,0.58722187]
[1756956254549,0.20433447,851.92,851.91,0.58712161]
[1756956255952,0.20433447,851.92,851.44,0.79014047]
[1756956256149,0.20433447,851.92,851.45,1.2893447]
[1756956256449,0.20433447,851.92,851.46,1.2893447]
[1756956256652,0.20433447,851.92,851.47,1.2893447]
[1756956256854,0.20433447,851.92,851.48,1.2893447]
[1756956257053,0.20433447,851.92,851.49,1.2893447]
[1756956257250,0.20433447,851.92,851.5,2.07948517]
[1756956257554,0.20433447,851.92,851.51,1.2893447]
[1756956257755,0.20433447,851.92,851.52,1.2893447]
[1756956257956,0.20433447,851.92,851.53,1.2893447]
[1756956258155,0.20433447,851.92,851.54,1.2893447]
[1756956258451,0.20433447,851.92,851.55,1.2893447]
[1756956258657,0.20433447,851.92,851.56,1.2893447]
[1756956258856,0.20433447,851.92,851.57,1.2893447]
[1756956259154,0.20433447,851.92,851.58,1.2893447]
[1756956259351,0.20433447,851.92,851.59,1.2893447]
[1756956259554,0.20433447,851.92,851.6,1.2893447]
[1756956259856,0.20433447,851.92,851.61,1.2893447]
[1756956260049,0.20433447,851.92,851.62,1.2893447]
[1756956260253,0.20433447,851.92,851.63,1.2893447]
[1756956260454,0.20433447,851.92,851.64,1.2893447]
[1756956260654,0.20433447,851.92,851.65,1.2893447]
[1756956260952,0.20433447,851.92,851.66,1.2893447]
[1756956261157,0.20433447,851.92,851.67,1.2893447]
[1756956261358,0.20433447,851.92,851.68,1.2893447]
[1756956261554,0.20433447,851.92,851.69,1.2893447]
[1756956261755,0.20433447,851.92,851.7,1.2893447]
[1756956261959,0.20433447,851.92,851.71,1.2893447]
[1756956262161,0.20433447,851.92,851.72,1.2893447]
[1756956262362,0.20433447,851.92,851.73,1.2893447]
[1756956262562,0.20433447,851.92,851.74,1.2893447]
[1756956262763,0.20433447,851.92,851.75,1.2893447]
[1756956262963,0.20433447,851.92,851.76,1.2893447]
[1756956263164,0.20433447,851.92,851.77,1.2893447]
[1756956263364,0.20433447,851.92,851.78,1.2893447]
[1756956263660,0.20433447,851.92,851.79,1.2893447]
[1756956263862,0.20433447,851.92,851.8,1.2893447]
[1756956264065,0.20433447,851.92,851.81,0.58712422]
[1756956264264,0.20433447,851.92,851.82,0.58712422]
[1756956264461,0.20433447,851.92,851.83,0.58712422]
[1756956264660,0.20433447,851.92,851.84,0.58712422]
[1756956264865,0.20433447,851.92,851.85,0.58712422]
[1756956265060,0.20433447,851.92,851.5,0.79014047]
[1756956265061,0.20433447,851.92,851.86,0.58712422]
[1756956265264,0.20433447,851.92,851.87,0.58712422]
[1756956265462,0.20433447,851.92,851.88,0.58712422]
[1756956265659,0.20433447,851.92,851.89,0.58712422]
[1756956265863,0.20433447,851.92,851.5,0.79014047]
[1756956265864,0.20433447,851.92,851.9,0.58712422]
[1756956266067,0.20433447,851.92,851.5,0.79014047]
[1756956266068,0.20433447,851.92,851.91,0.58712422]
[1756956271966,0.20433447,851.92,851.91,0.58708348]
[1756956273465,1.5724004,852.78,851.91,0.70330819]
[1756956273670,1.5724004,853.56,851.92,1.29031804]
[1756956273871,0.20417024,852.11,851.93,1.29031804]
[1756956274070,1.5724004,853.56,851.94,1.29031804]
[1756956274267,0.20412233,852.11,851.95,1.29031804]
[1756956274470,1.5724004,853.56,851.96,1.29031804]
[1756956274766,0.20412173,852.11,851.97,1.29031804]
[1756956274970,1.5724004,853.57,851.98,1.29031804]
[1756956275168,1.5724004,853.57,851.99,1.29031804]
[1756956275373,0.20411994,852.11,852.0,1.29031804]
[1756956275569,1.5724004,853.57,852.01,1.29031804]
[1756956275770,1.5724004,853.57,852.02,1.29031804]
[1756956275970,0.20411754,852.11,852.03,1.29031804]
[1756956276172,1.5724004,853.57,852.04,1.29031804]
[1756956276370,0.20411635,853.19,852.05,1.29031804]
[1756956276574,0.20411635,853.19,852.06,1.29031804]
[1756956276871,0.20411635,853.19,852.07,1.29031804]
[1756956277170,0.20411635,853.19,851.45,0.78926225]
[1756956277171,0.20411635,853.19,852.08,1.29031804]
[1756956277373,0.20411635,853.19,852.09,1.29031804]
[1756956277572,0.20411635,853.19,852.1,1.29031804]
[1756956277772,0.20411635,853.19,852.11,1.29031804]
[1756956277973,0.20411635,853.19,852.12,1.29031804]
[1756956278175,0.20411635,853.19,852.13,0.58700985]
[1756956278471,0.20411635,853.19,852.14,0.58700985]
[1756956278670,0.20411635,853.19,852.15,0.58700985]
[1756956278971,0.20411635,853.19,852.16,0.58700985]
[1756956279273,0.20411635,853.19,852.17,0.58700985]
[1756956279470,0.20411635,853.19,852.18,0.58700985]
[1756956279668,0.20411635,853.19,852.19,0.58700985]
[1756956279874,1.5724004,853.15,851.56,0.78926225]
[1756956280071,1.5724004,853.15,851.57,1.28973928]
[1756956280270,1.5724004,853.15,851.58,1.28973928]
[1756956280475,1.5724004,853.15,851.59,1.28973928]
[1756956280673,1.5724004,853.15,851.6,1.28973928]
[1756956280871,1.5724004,853.15,851.61,1.28973928]
[1756956281074,1.5724004,853.15,851.62,1.28973928]
[1756956281375,1.5724004,853.15,851.63,1.28973928]
[1756956281571,1.5724004,853.15,851.64,1.28973928]
[1756956281776,1.5724004,853.15,851.65,1.28973928]
[1756956281970,1.5724004,853.05,851.66,1.28973928]
[1756956282171,1.5724004,853.05,851.67,1.28973928]
[1756956282476,1.5724004,853.0,851.68,1.28973928]
[1756956282672,1.5724004,853.0,851.69,1.28973928]
[1756956282973,1.5724004,853.0,851.7,1.28973928]
[1756956283172,1.5724004,853.0,851.71,1.28973928]
[1756956283470,1.5724004,852.79,851.72,1.28973928]
[1756956283676,1.5724004,852.79,851.73,1.28973928]
[1756956283972,1.5724004,852.79,851.74,1.28973928]
[1756956284171,1.5724004,852.79,851.75,1.28973928]
[1756956284376,1.5724004,852.79,851.76,1.28973928]
[1756956284576,1.5724004,852.79,851.77,1.28973928]
[1756956284777,1.5724004,852.79,851.78,1.28973928]
[1756956284978,1.5724004,852.79,851.79,1.28973928]
[1756956285177,1.5724004,852.79,851.8,1.28973928]
[1756956285375,1.5724004,852.8,851.81,1.28973928]
[1756956285676,1.5724004,852.77,851.82,1.28973928]
[1756956285875,1.5724004,852.77,851.83,1.28973928]
[1756956286075,1.5724004,852.77,851.84,1.28973928]
[1756956286376,1.5724004,852.77,851.85,1.28973928]
[1756956286573,1.5724004,852.77,851.86,1.28973928]
[1756956286777,1.5724004,852.77,851.87,1.28973928]
[1756956287075,1.5724004,852.77,851.88,0.58700942]
[1756956287374,1.5724004,852.77,851.89,0.58700942]
[1756956287578,1.5724004,852.77,851.9,0.58700942]
[1756956287779,1.5724004,852.77,851.91,0.58700942]
[1756956288078,1.5724004,852.77,851.92,0.58700942]
[1756956288276,1.5724004,852.77,851.93,0.58700942]
[1756956288476,1.5724004,852.77,851.53,0.78926225]
[1756956288477,1.5724004,852.74,851.94,0.58700942]
[1756956288776,1.5724004,852.73,851.95,0.58700942]
[1756956289080,1.5724004,852.71,851.96,0.58700942]
[1756956289276,1.5724004,852.71,851.97,0.58700942]
[1756956289580,1.5724004,852.71,851.54,0.78926225]
[1756956289783,1.5724004,852.7,851.55,2.07790804]
[1756956290077,1.5724004,852.69,851.56,1.28864579]
[1756956290380,1.5724004,852.69,850.5,2.6253685]
[1756956290381,1.5724004,852.63,851.57,2.07790804]
[1756956290680,1.5724004,852.63,851.58,1.28864579]
[1756956290881,1.5724004,852.63,851.59,1.28864579]
[1756956291182,1.5724004,852.63,851.6,1.28864579]
[1756956291382,1.5724004,852.63,851.57,0.78926225]
[1756956291383,1.5724004,852.62,851.61,1.28864579]
[1756956291580,1.5724004,852.62,851.62,1.28864579]
[1756956291785,1.5724004,852.62,850.65,2.6253685]
[1756956291786,1.5724004,852.67,851.63,1.28864579]
[1756956291982,1.5724004,852.72,851.64,1.28864579]
[1756956292279,1.5724004,852.71,851.65,1.28864579]
[1756956292478,1.5724004,852.71,851.66,1.28864579]
[1756956292682,1.5724004,852.71,851.67,1.28864579]
[1756956292983,1.5724004,852.71,851.68,1.28864579]
[1756956293284,1.5724004,852.7,851.69,1.28864574]
[1756956293580,1.5724004,852.69,851.7,1.28864574]
[1756956293884,1.5724004,852.7,851.71,1.28864574]
[1756956294082,1.5724004,852.7,851.72,1.28864574]
[1756956294286,1.5724004,852.69,851.73,1.28864574]
[1756956294586,1.5724004,852.69,851.74,1.28864574]
[1756956294786,1.5724004,852.69,851.75,1.28864574]
[1756956295083,1.5724004,852.69,851.76,1.28864574]
[1756956295281,1.5724004,852.69,851.77,1.28864574]
[1756956295488,1.5724004,852.69,851.78,1.28864574]
[1756956295683,1.5724004,852.69,851.79,1.28864574]
[1756956295885,1.5724004,852.72,851.8,1.28864574]
[1756956296089,1.5724004,852.7,851.81,1.28864574]
[1756956296285,1.5724004,852.69,851.82,1.28864574]
[1756956296484,1.5724004,852.69,851.83,1.28864574]
[1756956296690,1.5724004,852.69,851.84,1.28864574]
[1756956296889,1.5724004,852.69,851.85,1.28864574]
[1756956297089,1.5724004,852.69,851.86,1.28864574]
[1756956297289,1.5724004,852.69,851.87,1.28864574]
[1756956297486,1.5724004,852.69,851.88,1.28864574]
[1756956297688,1.5724004,852.72,851.89,1.28864574]
[1756956297991,1.5724004,852.72,851.9,1.28864574]
[1756956298189,1.5724004,852.74,851.91,1.28864574]
[1756956298387,1.5724004,852.73,851.92,1.28864574]
[1756956298592,1.5724004,852.73,851.93,1.28864574]
[1756956298791,1.5724004,852.73,851.94,1.28864574]
[1756956298990,1.5724004,852.73,851.95,0.58700959]
[1756956299190,1.5724004,852.73,851.96,0.58700959]
[1756956299388,1.5724004,852.74,851.97,0.58700959]
[1756956299688,1.5724004,852.74,851.98,0.58700959]
[1756956299891,1.5724004,852.74,851.99,0.58700959]
[1756956300191,1.5724004,852.74,852.0,0.58700959]
[1756956300391,1.5724004,852.74,852.01,0.58700959]
[1756956300592,1.5724004,852.74,852.02,0.58700959]
[1756956300793,1.5724004,852.74,852.03,0.58700959]
[1756956301092,1.5724004,852.74,852.04,0.58700959]
[1756956301293,1.5724004,852.74,852.05,0.58700959]
[1756956301488,1.5724004,852.87,852.06,0.58700959]
[1756956301688,1.5724004,852.87,852.07,0.58700959]
[1756956301890,1.5724004,852.87,852.08,0.58700959]
[1756956302092,1.5724004,852.87,851.46,1.0501474]
[1756956302093,1.5724004,852.89,852.09,0.58700959]
[1756956302293,1.5724004,852.89,852.1,0.58700959]
[1756956302590,1.5724004,852.89,852.11,0.58700959]
[1756956302894,1.5724004,852.89,852.12,0.58700959]
[1756956303095,1.5724004,852.89,852.13,0.58700959]
[1756956303294,1.5724004,852.88,852.14,0.58700959]
[1756956303494,1.5724004,852.88,852.15,0.58700959]
[1756956303696,1.5724004,852.88,852.16,0.58700959]
[1756956303996,1.5724004,852.88,852.17,0.58700959]
[1756956304296,1.5724004,852.89,852.18,0.58700959]
[1756956304595,1.5724004,852.89,851.68,0.78926225]
[1756956304892,1.5724004,852.89,851.69,1.28917546]
[1756956305195,1.5724004,852.89,851.7,1.28917546]
[1756956305494,1.5724004,852.89,851.71,1.28917546]
[1756956305690,1.5724004,852.9,851.72,1.28917546]
[1756956305892,1.5724004,852.9,851.73,1.28917546]
[1756956306096,1.5724004,852.9,851.74,1.28917546]
[1756956306296,1.5724004,852.9,851.75,1.28917546]
[1756956306596,1.5724004,852.9,851.76,1.28917546]
[1756956306792,1.5724004,852.9,851.77,1.28917546]
[1756956307098,1.5724004,852.9,851.78,1.28917546]
[1756956307298,1.5724004,852.91,851.79,1.28917546]
[1756956307497,1.5724004,852.9,851.8,1.28917546]
[1756956307793,1.5724004,852.93,851.81,1.28917546]
[1756956307997,1.5724004,852.93,851.82,1.28917546]
[1756956308195,1.5724004,852.93,851.83,1.28917546]
[1756956308393,1.5724004,852.93,851.84,1.28917546]
[1756956308597,1.5724004,852.93,851.85,1.28917546]
[1756956308795,1.5724004,852.93,851.86,1.28917546]
[1756956308998,1.5724004,852.93,851.87,1.28917546]
[1756956309199,1.5724004,852.93,851.88,1.28917546]
[1756956309399,1.5724004,852.93,851.89,1.28917669]
[1756956309599,1.5724004,852.93,851.9,1.28917669]
[1756956309799,1.5724004,852.92,851.91,1.28917669]
[1756956309996,1.5724004,852.92,851.92,1.28917669]
[1756956310196,1.5724004,852.92,851.93,1.28917669]
[1756956310401,1.5724004,852.92,851.94,1.28917669]
[1756956310598,1.5724004,852.94,851.95,1.28917669]
[1756956310799,1.5724004,852.94,851.96,1.28917669]
[1756956310998,1.5724004,852.94,851.97,1.28917669]
[1756956311197,1.5724004,852.95,851.98,1.28917669]
[1756956311402,1.5724004,852.88,851.99,1.28917669]
[1756956311602,1.5724004,852.88,852.0,1.28917669]
[1756956311802,1.5724004,852.88,852.01,1.28917669]
[1756956312098,1.5724004,852.79,852.02,0.58695778]
[1756956312302,1.5724004,852.8,852.03,0.58695778]
[1756956312502,1.5724004,852.78,852.04,0.58695778]
[1756956312704,1.5724004,852.78,852.05,0.58695778]
[1756956312904,1.5724004,852.77,852.06,0.58695778]
[1756956313104,1.5724004,852.77,852.07,0.58695778]
[1756956313404,1.5724004,852.78,852.08,0.58695778]
[1756956313600,1.5724004,852.78,852.09,0.58695778]
[1756956313804,1.5724004,852.78,852.1,0.58695778]
[1756956314105,1.5724004,852.78,852.11,0.58695778]
[1756956314401,1.5724004,852.77,852.12,0.58695778]
[1756956314600,1.5724004,852.77,852.13,0.58695778]
[1756956314800,1.5724004,852.81,852.14,0.58695778]
[1756956315005,1.5724004,852.81,852.15,0.58695778]
[1756956315304,1.5724004,852.81,852.16,0.58695778]
[1756956315502,1.5724004,852.79,852.17,0.58695778]
[1756956315701,1.5724004,852.79,851.63,0.78926225]
[1756956315899,1.5724004,852.79,851.64,1.28915819]
[1756956316199,1.5724004,852.79,851.65,1.28915819]
[1756956316504,1.5724004,852.79,851.66,1.28915819]
[1756956316705,1.5724004,852.79,851.67,1.28915819]
[1756956316901,1.5724004,852.79,851.68,1.28915819]
[1756956317102,1.5724004,852.79,851.69,1.28915819]
[1756956317302,1.5724004,852.79,851.7,1.28915819]
[1756956317505,1.5724004,852.75,851.71,1.28915819]
[1756956317706,1.5724004,852.75,851.72,1.28915819]
[1756956317904,1.5724004,852.73,851.73,1.28915819]
[1756956318203,1.5724004,852.73,851.74,1.28915819]
[1756956318407,1.5724004,852.73,851.75,1.28915819]
[1756956318707,1.5724004,852.73,851.76,1.28915819]
[1756956319006,1.5724004,852.73,851.77,1.28915819]
[1756956319206,1.5724004,852.73,851.78,1.28915819]
[1756956319403,1.5724004,852.73,851.66,0.78926225]
[1756956319404,1.5724004,852.72,851.79,1.28915819]
[1756956319707,1.5724004,852.72,851.8,1.28915819]
[1756956319908,1.5724004,852.72,851.81,0.70222335]
[1756956320106,1.5724004,852.72,851.82,1.28915803]
[1756956320304,1.5724004,852.71,851.83,1.28915803]
[1756956320506,1.5724004,852.71,851.84,1.28915803]
[1756956320704,1.5724004,852.71,851.85,1.28915803]
[1756956320906,1.5724004,852.71,851.86,1.28915803]
[1756956321106,1.5724004,852.71,851.87,1.28915803]
[1756956321305,1.5724004,852.71,851.67,0.78926225]
[1756956321306,1.5724004,852.71,851.88,1.28915803]
[1756956321511,1.5724004,852.71,851.89,1.28915803]
[1756956321808,1.5724004,852.71,851.9,1.28915803]
[1756956322011,1.5724004,852.71,851.91,1.28915803]
[1756956322311,1.5724004,852.82,851.92,1.28915803]
[1756956322507,1.5724004,852.81,851.93,1.28915803]
[1756956322711,1.5724004,852.81,851.94,1.28915803]
[1756956322909,1.5724004,852.81,851.78,0.78926225]
[1756956322910,1.5724004,852.81,851.95,1.28915803]
[1756956323210,1.5724004,852.81,851.96,1.28915803]
[1756956323409,1.5724004,852.81,851.97,1.28915803]
[1756956323610,1.5724004,852.81,851.98,1.28915803]
[1756956323813,1.5724004,852.8,851.99,1.28915803]
[1756956324013,1.5724004,852.8,852.0,1.28915803]
[1756956324310,1.5724004,852.79,852.01,1.28915803]
[1756956324509,1.5724004,852.8,852.02,1.28915803]
[1756956324714,1.5724004,852.74,852.03,1.28915803]
[1756956324916,1.5724004,852.74,852.04,1.28915803]
[1756956325111,1.5724004,852.74,852.05,1.28915803]
[1756956325315,1.5724004,852.74,852.06,1.28915803]
[1756956325517,1.5724004,852.73,852.07,1.28915803]
[1756956325817,1.5724004,852.73,852.08,0.58693468]
[1756956326112,1.5724004,852.76,852.09,0.58693468]
[1756956326316,1.5724004,852.76,852.1,0.58693468]
[1756956326513,1.5724004,852.79,852.11,0.58693468]
[1756956326711,1.5724004,852.79,852.12,0.58693468]
[1756956326917,1.5724004,852.79,852.13,0.58693468]
[1756956327112,1.5724004,852.79,852.14,0.58693468]
[1756956327315,1.5724004,852.79,852.15,0.58693468]
[1756956327616,1.5724004,852.79,852.16,0.58693468]
[1756956327814,1.5724004,852.79,852.17,0.58693468]
[1756956328116,1.5724004,852.88,852.18,0.58693468]
[1756956328317,1.5724004,852.87,852.19,0.58693468]
[1756956328616,1.5724004,852.87,852.2,0.58693468]
[1756956328812,1.5724004,852.87,852.21,0.58693468]
[1756956329017,1.5724004,852.91,852.22,0.58693468]
[1756956329218,1.5724004,852.91,852.23,0.58693468]
[1756956329417,1.5724004,852.9,852.24,0.58693468]
[1756956329717,1.5724004,852.9,852.25,0.58693468]
[1756956330014,1.5724004,852.9,852.26,0.58693468]
[1756956330218,1.5724004,852.9,851.76,0.78926225]
[1756956330417,1.5724004,852.9,851.77,2.07909636]
[1756956330614,1.5724004,852.9,851.78,1.28983411]
[1756956330913,1.5724004,852.9,851.77,0.78926225]
[1756956330914,1.5724004,852.9,851.79,1.28983411]
[1756956331219,1.5724004,852.9,851.8,1.28983411]
[1756956331418,1.5724004,852.89,851.81,1.28983411]
[1756956331614,1.5724004,852.89,851.82,1.28983411]
[1756956331916,1.5724004,852.89,851.83,1.28983411]
[1756956332118,1.5724004,852.85,851.84,1.28983411]
[1756956332314,1.5724004,852.85,851.85,1.28983411]
[1756956332518,1.5724004,852.85,851.86,1.28983411]
[1756956332719,1.5724004,852.85,851.87,1.28983411]
[1756956332918,1.5724004,852.85,851.88,1.28983411]
[1756956333118,1.5724004,852.85,851.89,1.28983411]
[1756956333317,1.5724004,852.85,851.73,0.78926225]
[1756956333318,1.5724004,852.84,851.9,1.28983411]
[1756956333522,1.5724004,852.84,851.91,1.28983411]
[1756956333815,1.5724004,852.84,851.92,1.28983411]
[1756956334020,1.5724004,852.84,851.93,1.28983438]
[1756956334321,1.5724004,852.84,851.94,1.28983438]
[1756956334518,1.5724004,852.84,851.95,1.28983438]
[1756956334720,1.5724004,852.84,851.96,1.28983438]
[1756956334920,1.5724004,852.85,851.97,1.28983438]
[1756956335220,1.5724004,852.85,851.98,1.28983438]
[1756956335420,1.5724004,852.85,851.99,1.28983438]
[1756956335618,1.5724004,852.85,852.0,1.28983438]
[1756956335817,1.5724004,852.84,852.01,1.28983438]
[1756956336017,1.5724004,852.84,852.02,1.28983438]
[1756956336217,1.5724004,852.86,852.03,1.28983438]
[1756956336418,1.5724004,852.85,852.04,1.28983438]
[1756956336617,1.5724004,852.85,852.05,1.28983438]
[1756956336815,1.5724004,852.85,851.74,0.78926225]
[1756956336816,1.5724004,852.85,852.06,1.28983438]
[1756956337022,1.5724004,852.85,852.07,1.28983438]
[1756956337321,1.5724004,852.84,852.08,1.28983438]
[1756956337516,1.5724004,852.84,852.09,1.28983438]
[1756956337717,1.5724004,852.84,852.1,0.58693527]
[1756956337921,1.5724004,852.79,852.11,0.58693527]
[1756956338115,1.5724004,852.79,852.12,0.58693527]
[1756956338416,1.5724004,852.79,852.13,0.58693527]
[1756956338621,1.5724004,852.79,852.14,0.58693527]
[1756956338818,1.5724004,852.75,852.15,0.58693527]
[1756956339021,1.5724004,852.75,852.16,0.58693527]
[1756956339219,1.5724004,852.75,852.17,0.58693527]
[1756956339419,1.5724004,852.75,852.18,0.58693527]
[1756956339623,1.5724004,852.75,851.77,0.78926225]
[1756956339823,1.5724004,852.75,851.78,1.29017499]
[1756956340023,1.5724004,852.74,851.79,1.29017499]
[1756956340225,1.5724004,852.77,851.8,1.29017499]
[1756956340425,1.5724004,852.77,851.81,1.29017499]
[1756956340724,1.5724004,852.78,851.82,1.29017499]
[1756956340922,1.5724004,852.78,851.83,1.29017499]
[1756956341124,1.5724004,852.78,851.84,1.29017515]
[1756956341424,1.5724004,852.78,851.85,1.29017515]
[1756956341625,1.5724004,852.77,851.86,1.29017515]
[1756956341826,1.5724004,852.77,851.87,1.29017515]
[1756956342021,1.5724004,852.79,851.88,1.29017515]
[1756956342220,1.5724004,852.79,851.89,1.29017515]
[1756956342422,1.5724004,852.79,851.9,1.29017515]
[1756956342620,0.20411635,853.19,851.91,1.29017515]
[1756956342621,1.5724004,852.8,851.91,1.29017515]
[1756956342927,1.5724004,852.8,851.92,1.29017515]
[1756956343221,1.5724004,852.78,851.93,1.29017515]
[1756956343420,1.5724004,852.78,851.94,1.29017515]
[1756956343623,1.5724004,852.78,851.95,1.29022539]
[1756956343826,1.5724004,852.78,851.96,1.29022539]
[1756956344022,1.5724004,852.78,851.97,1.29022539]
[1756956344224,1.5724004,852.78,851.98,1.29022539]
[1756956344425,1.5724004,852.78,851.99,1.29022539]
[1756956344625,1.5724004,852.78,852.0,1.29022539]
[1756956344828,1.5724004,852.77,852.01,1.29022539]
[1756956345028,1.5724004,852.77,852.02,1.29022539]
[1756956345324,1.5724004,852.77,852.03,1.29022539]
[1756956345525,1.5724004,852.77,852.04,1.29022539]
[1756956345723,1.5724004,852.77,852.05,1.29022539]
[1756956345925,1.5724004,853.04,852.06,1.29022539]
[1756956346125,1.5724004,853.04,852.07,1.29022539]
[1756956346325,1.5724004,853.04,852.08,1.29022539]
[1756956346528,1.5724004,853.15,852.09,1.29022539]
[1756956346728,0.20411635,853.19,852.1,1.29022539]
[1756956347027,0.20411635,853.19,852.11,1.29022539]
[1756956347228,0.20411635,853.19,852.12,1.29022539]
[1756956347422,0.20411635,853.19,851.29,1.0501474]
[1756956347423,1.5724004,853.13,852.13,0.58693522]
[1756956347624,1.5724004,853.08,852.14,0.58693522]
[1756956347824,1.5724004,853.08,852.15,0.58693522]